[Event "Early-Titled-Tuesday-Blitz-April-02-2024"]
[Site "Chess.com"]
[Date "2024.04.02"]
[Round "1"]
[White "Tugrik1969"]
[Black "Polish_fighter3000"]
[Result "0-1"]
[WhiteElo "2549"]
[BlackElo "3140"]
[TimeControl "180+1"]
[EndTime "8:05:33 PDT"]
[Termination "Polish_fighter3000 won by resignation"]

1. d4 {[%clk 0:03:00.9]} 1... f5 {[%clk 0:02:58.5]} 2. g3 {[%clk 0:02:59.9]}
2... Nf6 {[%clk 0:02:58.8]} 3. Bg2 {[%clk 0:03:00.5]} 3... g6 {[%clk 0:02:59.4]}
4. Nf3 {[%clk 0:03:00.5]} 4... Bg7 {[%clk 0:02:59.1]} 5. O-O {[%clk 0:03:01]}
5... O-O {[%clk 0:02:59.1]} 6. c4 {[%clk 0:03:01.6]} 6... d6 {[%clk 0:02:59.1]}
7. Nc3 {[%clk 0:03:02.1]} 7... Qe8 {[%clk 0:02:58.6]} 8. Re1 {[%clk 0:02:59.5]}
8... e5 {[%clk 0:02:57.9]} 9. dxe5 {[%clk 0:02:55.8]} 9... dxe5 {[%clk
0:02:58.8]} 10. e4 {[%clk 0:02:56.4]} 10... f4 {[%clk 0:02:59.1]} 11. gxf4
{[%clk 0:02:54.2]} 11... Nc6 {[%clk 0:02:50.9]} 12. Nd5 {[%clk 0:02:45.3]} 12...
Rf7 {[%clk 0:02:44.5]} 13. Nxe5 {[%clk 0:02:19.5]} 13... Nxe5 {[%clk 0:02:43.3]}
14. fxe5 {[%clk 0:02:20.4]} 14... Qxe5 {[%clk 0:02:42.1]} 15. f4 {[%clk
0:02:03.8]} 15... Qe8 {[%clk 0:02:41.1]} 16. e5 {[%clk 0:01:58.7]} 16... Nh5
{[%clk 0:02:34]} 17. e6 {[%clk 0:01:33.5]} 17... Bxe6 {[%clk 0:02:30]} 18. f5
{[%clk 0:01:08.5]} 18... Bxf5 {[%clk 0:02:25.3]} 19. Rxe8+ {[%clk 0:01:06.7]}
19... Rxe8 {[%clk 0:02:26.2]} 20. Ne3 {[%clk 0:00:58.7]} 20... Be4 {[%clk
0:02:16.7]} 21. Bxe4 {[%clk 0:00:52.4]} 21... Rxe4 {[%clk 0:02:17.6]} 22. Qd8+
{[%clk 0:00:52.6]} 22... Bf8 {[%clk 0:02:18]} 23. Bd2 {[%clk 0:00:44.9]} 23...
Nf4 {[%clk 0:02:07.6]} 24. Rf1 {[%clk 0:00:28.5]} 24... Rd4 {[%clk 0:02:02.3]}
25. Nd5 {[%clk 0:00:19.8]} 25... Ne6 {[%clk 0:01:37.7]} 26. Qe8 {[%clk
0:00:11.8]} 26... Rg4+ {[%clk 0:01:35.9]} 0-1

[Event "Early-Titled-Tuesday-Blitz-April-02-2024"]
[Site "Chess.com"]
[Date "2024.04.02"]
[Round "1"]
[White "rhwr"]
[Black "sonicdravise"]
[Result "0-1"]
[WhiteElo "2253"]
[BlackElo "2608"]
[TimeControl "180+1"]
[EndTime "8:05:33 PDT"]
[Termination "sonicdravise won by checkmate"]

1. e4 {[%clk 0:02:56.2]} 1... g6 {[%clk 0:03:00.9]} 2. d4 {[%clk 0:02:55.9]}
2... Bg7 {[%clk 0:03:01.7]} 3. Nc3 {[%clk 0:02:56]} 3... d6 {[%clk 0:03:02.1]}
4. f3 {[%clk 0:02:56.6]} 4... a6 {[%clk 0:03:01.4]} 5. Be3 {[%clk 0:02:57]} 5...
b5 {[%clk 0:03:01.3]} 6. Qd2 {[%clk 0:02:57.1]} 6... Nd7 {[%clk 0:03:00.8]} 7.
h4 {[%clk 0:02:57]} 7... h5 {[%clk 0:02:43]} 8. Nh3 {[%clk 0:02:54.8]} 8... Ngf6
{[%clk 0:02:42]} 9. Ng5 {[%clk 0:02:54.1]} 9... Nb6 {[%clk 0:02:39.4]} 10. O-O-O
{[%clk 0:02:47.1]} 10... b4 {[%clk 0:02:37.9]} 11. Nb1 {[%clk 0:02:44.8]} 11...
a5 {[%clk 0:02:31.6]} 12. d5 {[%clk 0:02:39.2]} 12... Ba6 {[%clk 0:02:25.4]} 13.
Bxb6 {[%clk 0:02:09.9]} 13... cxb6 {[%clk 0:02:23.3]} 14. Bxa6 {[%clk
0:02:10.1]} 14... Rxa6 {[%clk 0:02:24.2]} 15. Qd3 {[%clk 0:02:10.6]} 15... Ra8
{[%clk 0:02:07.8]} 16. Qb5+ {[%clk 0:02:10.9]} 16... Qd7 {[%clk 0:02:07.1]} 17.
Qxd7+ {[%clk 0:02:10.8]} 17... Nxd7 {[%clk 0:02:07.1]} 18. Nd2 {[%clk 0:02:05]}
18... O-O {[%clk 0:02:06.7]} 19. Kb1 {[%clk 0:02:03.5]} 19... b5 {[%clk
0:02:04]} 20. Nf1 {[%clk 0:02:02.9]} 20... Rfc8 {[%clk 0:02:02.6]} 21. Ne3
{[%clk 0:02:01.4]} 21... Ne5 {[%clk 0:01:59.9]} 22. f4 {[%clk 0:01:52.6]} 22...
Nc4 {[%clk 0:01:59.5]} 23. Nxc4 {[%clk 0:01:52.4]} 23... Rxc4 {[%clk 0:01:58.7]}
24. b3 {[%clk 0:01:45.6]} 24... Rc3 {[%clk 0:01:56.1]} 25. Rh3 {[%clk
0:01:45.3]} 25... Rc5 {[%clk 0:01:50.4]} 26. Re3 {[%clk 0:01:38.2]} 26... Rac8
{[%clk 0:01:49.9]} 27. Re2 {[%clk 0:01:38.7]} 27... Bc3 {[%clk 0:01:45.6]} 28.
e5 {[%clk 0:01:30.9]} 28... dxe5 {[%clk 0:01:42.7]} 29. fxe5 {[%clk 0:01:30.6]}
29... Rd8 {[%clk 0:01:43.2]} 30. e6 {[%clk 0:01:18.5]} 30... f6 {[%clk
0:01:35.7]} 31. Ne4 {[%clk 0:01:08.5]} 31... Rcxd5 {[%clk 0:01:35.6]} 32. Rxd5
{[%clk 0:01:07.5]} 32... Rxd5 {[%clk 0:01:36.5]} 33. Nxc3 {[%clk 0:01:08]} 33...
bxc3 {[%clk 0:01:37.2]} 34. a3 {[%clk 0:01:07.7]} 34... Rd1+ {[%clk 0:01:35.4]}
35. Ka2 {[%clk 0:01:07.5]} 35... Rd2 {[%clk 0:01:36.3]} 36. Re3 {[%clk 0:01:03]}
36... Rxc2+ {[%clk 0:01:35.8]} 37. Kb1 {[%clk 0:01:03.7]} 37... Rb2+ {[%clk
0:01:34.8]} 38. Kc1 {[%clk 0:01:02.5]} 38... Rxb3 {[%clk 0:01:35.5]} 39. a4
{[%clk 0:01:00.5]} 39... b4 {[%clk 0:01:30.9]} 40. Rd3 {[%clk 0:00:59.2]} 40...
Ra3 {[%clk 0:01:28.9]} 41. Rd7 {[%clk 0:00:58.7]} 41... b3 {[%clk 0:01:26.7]}
42. Rxe7 {[%clk 0:00:57.1]} 42... Ra1# {[%clk 0:01:26.6]} 0-1

[Event "Early-Titled-Tuesday-Blitz-April-02-2024"]
[Site "Chess.com"]
[Date "2024.04.02"]
[Round "1"]
[White "Elegance_Riks"]
[Black "AccioChess"]
[Result "1/2-1/2"]
[WhiteElo "2775"]
[BlackElo "2470"]
[TimeControl "180+1"]
[EndTime "8:05:41 PDT"]
[Termination "Game drawn by repetition"]

1. Nf3 {[%clk 0:03:00.9]} 1... Nf6 {[%clk 0:02:59.2]} 2. c4 {[%clk 0:03:01.3]}
2... g6 {[%clk 0:02:59]} 3. b3 {[%clk 0:02:58.6]} 3... Bg7 {[%clk 0:02:58.9]} 4.
Bb2 {[%clk 0:02:59.2]} 4... O-O {[%clk 0:02:59]} 5. g3 {[%clk 0:02:59.7]} 5...
d6 {[%clk 0:02:59.3]} 6. d4 {[%clk 0:02:52.8]} 6... c5 {[%clk 0:02:52.5]} 7. Bg2
{[%clk 0:02:52.9]} 7... cxd4 {[%clk 0:02:28.9]} 8. Nxd4 {[%clk 0:02:48.4]} 8...
a6 {[%clk 0:02:22.5]} 9. O-O {[%clk 0:02:47]} 9... Qc7 {[%clk 0:02:22.7]} 10.
Nc3 {[%clk 0:02:45.7]} 10... Nc6 {[%clk 0:02:22.6]} 11. Rc1 {[%clk 0:02:43.8]}
11... Nxd4 {[%clk 0:02:20.2]} 12. Qxd4 {[%clk 0:02:43.7]} 12... Be6 {[%clk
0:02:20.3]} 13. Nd5 {[%clk 0:02:18.7]} 13... Bxd5 {[%clk 0:02:20]} 14. cxd5
{[%clk 0:02:18.7]} 14... Qd7 {[%clk 0:02:19.9]} 15. Qb6 {[%clk 0:01:56]} 15...
Rfc8 {[%clk 0:02:19.4]} 16. e4 {[%clk 0:01:55.4]} 16... Rxc1 {[%clk 0:02:18.7]}
17. Rxc1 {[%clk 0:01:55]} 17... Rc8 {[%clk 0:02:19.4]} 18. Qe3 {[%clk
0:01:27.7]} 18... Nxd5 {[%clk 0:02:12.5]} 19. Rxc8+ {[%clk 0:01:26.8]} 19...
Qxc8 {[%clk 0:02:11.8]} 20. exd5 {[%clk 0:01:27.2]} 20... Bxb2 {[%clk 0:02:11]}
21. Qxe7 {[%clk 0:01:25.8]} 21... Qc1+ {[%clk 0:01:56.9]} 22. Bf1 {[%clk
0:01:25.2]} 22... Bd4 {[%clk 0:01:39.6]} 23. Qxd6 {[%clk 0:01:11.1]} 23... Qd2
{[%clk 0:01:38.8]} 24. Qf4 {[%clk 0:01:08.5]} 24... Qxf4 {[%clk 0:01:37.5]} 25.
gxf4 {[%clk 0:01:08.7]} 25... Bc5 {[%clk 0:01:37.5]} 26. Kg2 {[%clk 0:01:06.8]}
26... Kf8 {[%clk 0:01:37.6]} 27. Kf3 {[%clk 0:01:07.2]} 27... Ke7 {[%clk
0:01:37.9]} 28. Bg2 {[%clk 0:01:03.8]} 28... Kd6 {[%clk 0:01:36.4]} 29. Ke2
{[%clk 0:01:04.3]} 29... Ba3 {[%clk 0:01:24.6]} 30. h3 {[%clk 0:01:03.4]} 30...
Bc1 {[%clk 0:01:24.4]} 31. f5 {[%clk 0:01:03.7]} 31... gxf5 {[%clk 0:01:23.9]}
32. Bf3 {[%clk 0:01:02.7]} 32... Ke5 {[%clk 0:01:19.5]} 33. Bh5 {[%clk
0:01:02.7]} 33... Kxd5 {[%clk 0:01:16.5]} 34. Bxf7+ {[%clk 0:01:02.9]} 34... Ke5
{[%clk 0:01:16.8]} 35. Be8 {[%clk 0:01:00.7]} 35... a5 {[%clk 0:01:15.8]} 36.
Bd7 {[%clk 0:00:59.1]} 36... b6 {[%clk 0:01:15.1]} 37. a4 {[%clk 0:00:59]} 37...
Ba3 {[%clk 0:01:14.5]} 38. Bc8 {[%clk 0:00:59.3]} 38... Bc5 {[%clk 0:01:14]} 39.
Kf3 {[%clk 0:00:59.6]} 39... h6 {[%clk 0:01:11.7]} 40. Kg2 {[%clk 0:00:59.7]}
40... Kf4 {[%clk 0:01:11.5]} 41. f3 {[%clk 0:00:59.9]} 41... Bd4 {[%clk
0:01:11.4]} 42. Bd7 {[%clk 0:01:00.3]} 42... Bc5 {[%clk 0:01:11.7]} 43. Bc8
{[%clk 0:01:00.8]} 43... Bd4 {[%clk 0:01:12]} 44. Bd7 {[%clk 0:01:01.3]} 44...
Bc5 {[%clk 0:01:12.2]} 45. Bc8 {[%clk 0:01:01.9]} 1/2-1/2

[Event "Early-Titled-Tuesday-Blitz-April-02-2024"]
[Site "Chess.com"]
[Date "2024.04.02"]
[Round "1"]
[White "chucksterf10"]
[Black "Bob_2004"]
[Result "1-0"]
[WhiteElo "2665"]
[BlackElo "2357"]
[TimeControl "180+1"]
[EndTime "8:05:43 PDT"]
[Termination "chucksterf10 won on time"]

1. g3 {[%clk 0:02:59.6]} 1... d5 {[%clk 0:02:58.8]} 2. Bg2 {[%clk 0:03:00.5]}
2... c5 {[%clk 0:02:58.9]} 3. Nf3 {[%clk 0:03:00.8]} 3... Nc6 {[%clk 0:02:56.5]}
4. c4 {[%clk 0:03:01.2]} 4... d4 {[%clk 0:02:55.9]} 5. O-O {[%clk 0:03:01.4]}
5... e5 {[%clk 0:02:54.1]} 6. e3 {[%clk 0:03:01.8]} 6... Bd6 {[%clk 0:02:53.8]}
7. exd4 {[%clk 0:03:01.8]} 7... exd4 {[%clk 0:02:53.8]} 8. Re1+ {[%clk
0:03:01.9]} 8... Nge7 {[%clk 0:02:53.7]} 9. d3 {[%clk 0:03:00]} 9... O-O {[%clk
0:02:50.3]} 10. Nbd2 {[%clk 0:03:00.6]} 10... f5 {[%clk 0:02:49.2]} 11. a3
{[%clk 0:02:57.6]} 11... a5 {[%clk 0:02:47.2]} 12. b3 {[%clk 0:02:58]} 12... h6
{[%clk 0:02:46.9]} 13. Bb2 {[%clk 0:02:56.4]} 13... Ng6 {[%clk 0:02:45.8]} 14.
Rb1 {[%clk 0:02:50.2]} 14... Qc7 {[%clk 0:02:44.3]} 15. h3 {[%clk 0:02:34.2]}
15... Bd7 {[%clk 0:02:43.5]} 16. Qc2 {[%clk 0:02:31.5]} 16... Bxg3 {[%clk
0:02:17.8]} 17. fxg3 {[%clk 0:02:31.3]} 17... Qxg3 {[%clk 0:02:18.4]} 18. Nf1
{[%clk 0:02:29.9]} 18... Qd6 {[%clk 0:02:14.4]} 19. Qf2 {[%clk 0:02:24.3]} 19...
Nf4 {[%clk 0:01:57.5]} 20. Qg3 {[%clk 0:02:20]} 20... Rae8 {[%clk 0:01:36.4]}
21. Bc1 {[%clk 0:02:19.5]} 21... Rxe1 {[%clk 0:01:21.2]} 22. Bxf4 {[%clk
0:02:15.5]} 22... Qxf4 {[%clk 0:01:11]} 23. Rxe1 {[%clk 0:02:11.4]} 23... Qxg3
{[%clk 0:00:59.9]} 24. Nxg3 {[%clk 0:02:12.3]} 24... a4 {[%clk 0:00:53.8]} 25.
bxa4 {[%clk 0:02:09.2]} 25... Ra8 {[%clk 0:00:53.7]} 26. Ne5 {[%clk 0:02:09.1]}
26... Nxe5 {[%clk 0:00:50.1]} 27. Rxe5 {[%clk 0:02:10]} 27... Rxa4 {[%clk
0:00:36.6]} 28. Nxf5 {[%clk 0:02:10]} 28... Rxa3 {[%clk 0:00:33.8]} 29. Be4
{[%clk 0:02:08.1]} 29... b6 {[%clk 0:00:30.2]} 30. Ne7+ {[%clk 0:02:08.1]} 30...
Kf7 {[%clk 0:00:29.4]} 31. Nd5 {[%clk 0:02:05.5]} 31... Bxh3 {[%clk 0:00:28]}
32. Re7+ {[%clk 0:02:03.4]} 32... Kf8 {[%clk 0:00:27.3]} 33. Bg6 {[%clk
0:02:03.6]} 33... Ra8 {[%clk 0:00:17.9]} 34. Rf7+ {[%clk 0:02:03.9]} 34... Kg8
{[%clk 0:00:17.6]} 35. Nxb6 {[%clk 0:02:04.8]} 35... Ra6 {[%clk 0:00:11.9]} 36.
Rb7 {[%clk 0:02:03.1]} 36... Kf8 {[%clk 0:00:05.8]} 37. Nd5 {[%clk 0:02:02.3]}
37... Rxg6+ {[%clk 0:00:05.2]} 38. Kh2 {[%clk 0:02:03]} 38... Bf5 {[%clk
0:00:05.2]} 39. Rc7 {[%clk 0:01:58.2]} 39... Bxd3 {[%clk 0:00:05]} 40. Nf4
{[%clk 0:01:58.9]} 1-0

[Event "Early-Titled-Tuesday-Blitz-April-02-2024"]
[Site "Chess.com"]
[Date "2024.04.02"]
[Round "1"]
[White "2346PL"]
[Black "Iball95"]
[Result "1/2-1/2"]
[WhiteElo "2536"]
[BlackElo "2934"]
[TimeControl "180+1"]
[EndTime "8:05:44 PDT"]
[Termination "Game drawn by repetition"]

1. d4 {[%clk 0:03:00.9]} 1... d5 {[%clk 0:02:59.8]} 2. Nf3 {[%clk 0:03:00.6]}
2... Nf6 {[%clk 0:03:00.1]} 3. Bg5 {[%clk 0:03:00.5]} 3... Ne4 {[%clk
0:02:59.7]} 4. Bf4 {[%clk 0:03:00.5]} 4... Bf5 {[%clk 0:03:00.1]} 5. e3 {[%clk
0:03:00.1]} 5... e6 {[%clk 0:02:59.6]} 6. Bd3 {[%clk 0:02:55.3]} 6... Bd6 {[%clk
0:02:58.3]} 7. O-O {[%clk 0:02:52.8]} 7... O-O {[%clk 0:02:58.8]} 8. c4 {[%clk
0:02:50.4]} 8... dxc4 {[%clk 0:02:53.7]} 9. Bxc4 {[%clk 0:02:49.8]} 9... Bxf4
{[%clk 0:02:53.8]} 10. exf4 {[%clk 0:02:50.7]} 10... Qd6 {[%clk 0:02:47.2]} 11.
Ne5 {[%clk 0:02:44.5]} 11... Nc6 {[%clk 0:02:44.3]} 12. Nxc6 {[%clk 0:02:23.3]}
12... Qxc6 {[%clk 0:02:45.2]} 13. Qe2 {[%clk 0:02:20.4]} 13... Rad8 {[%clk
0:02:41.6]} 14. Rd1 {[%clk 0:02:20.2]} 14... Qb6 {[%clk 0:02:36.1]} 15. Nc3
{[%clk 0:02:15]} 15... Rxd4 {[%clk 0:02:29.4]} 16. Rxd4 {[%clk 0:02:03]} 16...
Qxd4 {[%clk 0:02:30.3]} 17. Nxe4 {[%clk 0:02:01.2]} 17... Qxe4 {[%clk
0:02:27.4]} 18. Qxe4 {[%clk 0:01:59.4]} 18... Bxe4 {[%clk 0:02:28.3]} 19. Rd1
{[%clk 0:01:59.7]} 19... Bc6 {[%clk 0:02:28.6]} 20. b4 {[%clk 0:01:58.3]} 20...
a6 {[%clk 0:02:28]} 21. f3 {[%clk 0:01:56.1]} 21... g6 {[%clk 0:02:25.5]} 22.
Kf2 {[%clk 0:01:55.9]} 22... Kg7 {[%clk 0:02:25.1]} 23. g4 {[%clk 0:01:55.5]}
23... Kf6 {[%clk 0:02:25]} 24. h4 {[%clk 0:01:53.2]} 24... Ke7 {[%clk
0:02:24.9]} 25. Ke3 {[%clk 0:01:45.6]} 25... h6 {[%clk 0:02:17.9]} 26. a3 {[%clk
0:01:41.8]} 26... Bb5 {[%clk 0:02:09.5]} 27. Bb3 {[%clk 0:01:38.9]} 27... Rd8
{[%clk 0:02:08.9]} 28. Rxd8 {[%clk 0:01:33]} 28... Kxd8 {[%clk 0:02:09.8]} 29.
f5 {[%clk 0:01:32]} 29... Ke7 {[%clk 0:01:56.9]} 30. fxg6 {[%clk 0:01:31]} 30...
fxg6 {[%clk 0:01:56.8]} 31. g5 {[%clk 0:01:29.7]} 31... hxg5 {[%clk 0:01:57]}
32. hxg5 {[%clk 0:01:29.8]} 32... e5 {[%clk 0:01:44.9]} 33. f4 {[%clk
0:01:23.9]} 33... exf4+ {[%clk 0:01:42.2]} 34. Kxf4 {[%clk 0:01:23.6]} 34... Bd7
{[%clk 0:01:42.4]} 35. Ke5 {[%clk 0:01:22.2]} 35... Bf5 {[%clk 0:01:42.2]} 36.
Bd5 {[%clk 0:01:20.3]} 36... c6 {[%clk 0:01:41.1]} 37. Bf3 {[%clk 0:01:18.5]}
37... Bc2 {[%clk 0:01:41.2]} 38. Bg4 {[%clk 0:01:15.9]} 38... Bb1 {[%clk
0:01:40]} 39. Bc8 {[%clk 0:01:11.9]} 39... b5 {[%clk 0:01:30.7]} 40. Bg4 {[%clk
0:00:55.4]} 40... Bd3 {[%clk 0:01:25.3]} 41. Bh3 {[%clk 0:00:54.3]} 41... Bb1
{[%clk 0:01:23.4]} 42. Bg4 {[%clk 0:00:54.4]} 42... Bc2 {[%clk 0:01:21.9]} 43.
Bh3 {[%clk 0:00:54.6]} 43... Bb1 {[%clk 0:01:22.4]} 44. Bg4 {[%clk 0:00:54.8]}
1/2-1/2

[Event "Early-Titled-Tuesday-Blitz-April-02-2024"]
[Site "Chess.com"]
[Date "2024.04.02"]
[Round "1"]
[White "AktilekAskarovich"]
[Black "Rutricks"]
[Result "0-1"]
[WhiteElo "2396"]
[BlackElo "2703"]
[TimeControl "180+1"]
[EndTime "8:05:45 PDT"]
[Termination "Rutricks won on time"]

1. d4 {[%clk 0:03:00.9]} 1... g6 {[%clk 0:03:00.3]} 2. c4 {[%clk 0:02:58.1]}
2... Bg7 {[%clk 0:03:00.9]} 3. Nf3 {[%clk 0:02:56]} 3... d6 {[%clk 0:03:01.6]}
4. e3 {[%clk 0:02:55.6]} 4... Nd7 {[%clk 0:03:02.3]} 5. Be2 {[%clk 0:02:55.9]}
5... e5 {[%clk 0:03:03]} 6. O-O {[%clk 0:02:56.4]} 6... Ngf6 {[%clk 0:03:03.5]}
7. Nc3 {[%clk 0:02:55.6]} 7... Kf8 {[%clk 0:03:04.1]} 8. b4 {[%clk 0:02:54.7]}
8... Kg8 {[%clk 0:03:04.3]} 9. a4 {[%clk 0:02:53]} 9... h6 {[%clk 0:03:04.7]}
10. a5 {[%clk 0:02:52.7]} 10... Kh7 {[%clk 0:03:05.2]} 11. b5 {[%clk 0:02:51.9]}
11... Re8 {[%clk 0:03:05.3]} 12. Bb2 {[%clk 0:02:50.1]} 12... Qe7 {[%clk
0:03:05.2]} 13. Qc2 {[%clk 0:02:37.7]} 13... Kg8 {[%clk 0:03:02.8]} 14. Rfd1
{[%clk 0:02:35.5]} 14... e4 {[%clk 0:03:03.3]} 15. Nd2 {[%clk 0:02:34]} 15...
Nf8 {[%clk 0:03:04]} 16. Nb3 {[%clk 0:02:30.2]} 16... h5 {[%clk 0:02:59.7]} 17.
c5 {[%clk 0:02:22.3]} 17... h4 {[%clk 0:02:59.9]} 18. cxd6 {[%clk 0:02:17.4]}
18... cxd6 {[%clk 0:03:00.8]} 19. a6 {[%clk 0:02:01.7]} 19... b6 {[%clk
0:03:00.9]} 20. d5 {[%clk 0:01:44.5]} 20... h3 {[%clk 0:03:00.6]} 21. g3 {[%clk
0:01:44.7]} 21... Bg4 {[%clk 0:02:45]} 22. Nd4 {[%clk 0:01:43.1]} 22... Rac8
{[%clk 0:02:42.6]} 23. Nc6 {[%clk 0:01:42.9]} 23... Qd7 {[%clk 0:02:43.3]} 24.
Rac1 {[%clk 0:01:39.2]} 24... Rc7 {[%clk 0:02:42.7]} 25. Rd2 {[%clk 0:01:33.1]}
25... N8h7 {[%clk 0:02:42.9]} 26. Qd1 {[%clk 0:01:32.9]} 26... Bxe2 {[%clk
0:02:40.4]} 27. Qxe2 {[%clk 0:01:33.8]} 27... Ng5 {[%clk 0:02:40.8]} 28. Rdc2
{[%clk 0:01:32.8]} 28... Nf3+ {[%clk 0:02:41.1]} 29. Kh1 {[%clk 0:01:33]} 29...
Ng4 {[%clk 0:02:41.7]} 30. Nxe4 {[%clk 0:01:29.4]} 30... Bxb2 {[%clk 0:02:35.4]}
31. Rxb2 {[%clk 0:01:28.6]} 31... Nfxh2 {[%clk 0:02:30.7]} 32. f3 {[%clk
0:01:17.4]} 32... Qf5 {[%clk 0:02:23.6]} 33. fxg4 {[%clk 0:00:42.1]} 33... Nxg4
{[%clk 0:02:22]} 34. Qxg4 {[%clk 0:00:39.2]} 34... Qxd5 {[%clk 0:02:21.5]} 35.
Rb4 {[%clk 0:00:34.7]} 35... Re5 {[%clk 0:02:15.3]} 36. Rd4 {[%clk 0:00:34.1]}
36... Qa2 {[%clk 0:02:14.1]} 37. Rd2 {[%clk 0:00:20.2]} 37... Qa3 {[%clk
0:02:14.4]} 38. Nf6+ {[%clk 0:00:19]} 38... Kg7 {[%clk 0:02:10.7]} 39. Nd5
{[%clk 0:00:19.9]} 39... Qxc1+ {[%clk 0:02:10.4]} 40. Rd1 {[%clk 0:00:18.4]}
40... Qc2 {[%clk 0:02:07.8]} 41. Rg1 {[%clk 0:00:16.8]} 41... Rxd5 {[%clk
0:02:00.8]} 0-1

[Event "Early-Titled-Tuesday-Blitz-April-02-2024"]
[Site "Chess.com"]
[Date "2024.04.02"]
[Round "1"]
[White "DanylaBagrov"]
[Black "JimDiGrease"]
[Result "0-1"]
[WhiteElo "2530"]
[BlackElo "2968"]
[TimeControl "180+1"]
[EndTime "8:05:47 PDT"]
[Termination "JimDiGrease won on time"]

1. d4 {[%clk 0:02:15.1]} 1... d5 {[%clk 0:02:58.8]} 2. Bf4 {[%clk 0:02:08.6]}
2... Nf6 {[%clk 0:02:58.8]} 3. e3 {[%clk 0:02:08.1]} 3... c5 {[%clk 0:02:59.2]}
4. c3 {[%clk 0:02:06.5]} 4... Nc6 {[%clk 0:02:58.1]} 5. Bd3 {[%clk 0:00:43.2]}
5... Qb6 {[%clk 0:02:55.8]} 6. Qc1 {[%clk 0:00:40]} 6... Bg4 {[%clk 0:02:50.9]}
7. h3 {[%clk 0:00:38.7]} 7... Bh5 {[%clk 0:02:50.8]} 8. Nd2 {[%clk 0:00:39]}
8... e6 {[%clk 0:02:50.2]} 9. Ngf3 {[%clk 0:00:38.6]} 9... Be7 {[%clk
0:02:47.4]} 10. O-O {[%clk 0:00:38.2]} 10... O-O {[%clk 0:02:46.6]} 11. Ne5
{[%clk 0:00:38.2]} 11... Rac8 {[%clk 0:02:45.1]} 12. a4 {[%clk 0:00:37.3]} 12...
Nxe5 {[%clk 0:02:35.5]} 13. Bxe5 {[%clk 0:00:34.7]} 13... Nd7 {[%clk 0:02:31.9]}
14. a5 {[%clk 0:00:34.1]} 14... Qc6 {[%clk 0:02:24.7]} 15. Bh2 {[%clk
0:00:34.5]} 15... Bg6 {[%clk 0:02:24.1]} 16. Qc2 {[%clk 0:00:31.2]} 16... Bf6
{[%clk 0:02:12.5]} 17. Rfc1 {[%clk 0:00:28.1]} 17... cxd4 {[%clk 0:02:07.9]} 18.
exd4 {[%clk 0:00:27]} 18... Bxd4 {[%clk 0:01:58.1]} 19. Bxg6 {[%clk 0:00:21.5]}
19... hxg6 {[%clk 0:01:55.5]} 20. Nf3 {[%clk 0:00:21.8]} 20... Bf6 {[%clk
0:01:55.6]} 21. Qd3 {[%clk 0:00:21.3]} 21... Nc5 {[%clk 0:01:52.5]} 22. Qe2
{[%clk 0:00:21]} 22... Nb3 {[%clk 0:01:52.9]} 23. Rab1 {[%clk 0:00:19.1]} 23...
Nxc1 {[%clk 0:01:53.2]} 24. Rxc1 {[%clk 0:00:20]} 24... Qc4 {[%clk 0:01:53.8]}
25. Qd2 {[%clk 0:00:19.4]} 25... d4 {[%clk 0:01:52.3]} 26. Be5 {[%clk
0:00:19.4]} 26... dxc3 {[%clk 0:01:50.3]} 27. Rxc3 {[%clk 0:00:18.1]} 27... Qe4
{[%clk 0:01:45.1]} 28. Bxf6 {[%clk 0:00:18.2]} 28... gxf6 {[%clk 0:01:46]} 29.
Rxc8 {[%clk 0:00:17.3]} 29... Rxc8 {[%clk 0:01:46.9]} 30. Qd7 {[%clk 0:00:17.6]}
30... Rc1+ {[%clk 0:01:46.5]} 31. Kh2 {[%clk 0:00:18.2]} 31... Qf4+ {[%clk
0:01:47.1]} 32. g3 {[%clk 0:00:17.2]} 32... Qxf3 {[%clk 0:01:47.7]} 33. Qc8+
{[%clk 0:00:16.9]} 33... Rxc8 {[%clk 0:01:46.9]} 0-1

[Event "Early-Titled-Tuesday-Blitz-April-02-2024"]
[Site "Chess.com"]
[Date "2024.04.02"]
[Round "1"]
[White "Attacker_2006"]
[Black "Suleyman_Chess06"]
[Result "0-1"]
[WhiteElo "2430"]
[BlackElo "2737"]
[TimeControl "180+1"]
[EndTime "8:05:49 PDT"]
[Termination "Suleyman_Chess06 won by checkmate"]

1. e4 {[%clk 0:03:00.9]} 1... e6 {[%clk 0:02:59.1]} 2. d4 {[%clk 0:03:00]} 2...
d5 {[%clk 0:02:59.1]} 3. Nc3 {[%clk 0:02:59.5]} 3... Nf6 {[%clk 0:02:58.3]} 4.
e5 {[%clk 0:02:59]} 4... Nfd7 {[%clk 0:02:58.9]} 5. Nce2 {[%clk 0:02:59.1]} 5...
c5 {[%clk 0:02:58.7]} 6. c3 {[%clk 0:02:59.9]} 6... Nc6 {[%clk 0:02:58.5]} 7. f4
{[%clk 0:03:00.4]} 7... Qb6 {[%clk 0:02:58.6]} 8. Nf3 {[%clk 0:02:59.7]} 8... a5
{[%clk 0:02:58.5]} 9. g4 {[%clk 0:02:57.4]} 9... cxd4 {[%clk 0:02:58.5]} 10.
Nexd4 {[%clk 0:02:55.7]} 10... Bc5 {[%clk 0:02:52.8]} 11. Rb1 {[%clk 0:02:49.1]}
11... O-O {[%clk 0:02:50.9]} 12. Be3 {[%clk 0:02:45.8]} 12... f6 {[%clk
0:02:49.9]} 13. exf6 {[%clk 0:02:43.1]} 13... Nxf6 {[%clk 0:02:49.4]} 14. h3
{[%clk 0:02:37.4]} 14... Ne4 {[%clk 0:02:36.2]} 15. Bg2 {[%clk 0:02:35]} 15...
Ng3 {[%clk 0:02:22.9]} 16. Rh2 {[%clk 0:02:24]} 16... Ne4 {[%clk 0:02:21.1]} 17.
Kf1 {[%clk 0:02:13.2]} 17... e5 {[%clk 0:02:20.4]} 18. fxe5 {[%clk 0:02:10.7]}
18... Nxe5 {[%clk 0:02:21.3]} 19. Kg1 {[%clk 0:02:07]} 19... Nc4 {[%clk
0:02:09.4]} 20. Bc1 {[%clk 0:01:39.9]} 20... Bd7 {[%clk 0:02:00.8]} 21. Qd3
{[%clk 0:01:15.6]} 21... Rae8 {[%clk 0:01:57]} 22. a3 {[%clk 0:00:33.5]} 22...
Bd6 {[%clk 0:01:52.4]} 23. b3 {[%clk 0:00:29.2]} 23... Bxh2+ {[%clk 0:01:48.5]}
24. Kxh2 {[%clk 0:00:30.1]} 24... Qd6+ {[%clk 0:01:44.5]} 25. Kg1 {[%clk
0:00:28.8]} 25... Ne5 {[%clk 0:01:41.6]} 26. Nxe5 {[%clk 0:00:27.8]} 26... Qxe5
{[%clk 0:01:42.5]} 27. Nf3 {[%clk 0:00:27.1]} 27... Qg3 {[%clk 0:01:42.1]} 28.
Qxd5+ {[%clk 0:00:27.1]} 28... Rf7 {[%clk 0:01:24]} 29. Qd4 {[%clk 0:00:24.3]}
29... Rxf3 {[%clk 0:01:22.3]} 30. Qxd7 {[%clk 0:00:18.7]} 30... Qf2+ {[%clk
0:01:22.6]} 31. Kh1 {[%clk 0:00:17.8]} 31... Rxh3+ {[%clk 0:01:23.5]} 32. Bxh3
{[%clk 0:00:17.8]} 32... Ng3# {[%clk 0:01:24.1]} 0-1